bitfinex-derivatives/quotes_BNBF0:USTF0_20250509
["timestamp","ask_amount","ask_price","bid_price","bid_amount"]
[1746795726986,1.45754661,637.68,637.21,0.31386826]
[1746795727190,1.45754661,637.67,637.22,0.28810732]
[1746795727495,0.27287911,638.28,637.23,0.31385841]
[1746795727695,1.422901,638.27,637.24,0.28810732]
[1746795728004,1.422901,638.26,637.25,0.31384856]
[1746795728196,1.422901,638.25,637.26,0.28810732]
[1746795728393,1.422901,638.24,637.27,0.31383871]
[1746795728597,1.422901,638.23,637.28,0.28810732]
[1746795728892,1.422901,638.22,637.29,0.31382886]
[1746795729099,1.422901,638.21,637.3,0.28810732]
[1746795729295,1.422901,638.2,637.3,0.28810732]
[1746795729499,1.422901,638.19,637.3,0.28810732]
[1746795729695,0.272816,638.28,637.3,0.28810732]
[1746795730402,1.41959943,638.27,637.3,0.28810732]
[1746795730698,0.31318509,638.6,637.3,0.28810732]
[1746795730897,0.27280959,638.28,637.3,0.28810732]
[1746795731103,1.42642628,638.27,637.3,0.60193126]
[1746795731301,1.42642628,638.26,637.3,0.60193126]
[1746795731502,1.42642628,638.25,637.3,0.60193126]
[1746795731702,1.42642628,638.24,637.3,0.60193126]
[1746795731902,1.42642628,638.23,637.31,0.28810732]
[1746795732102,1.42964763,638.22,637.31,0.28810732]
[1746795732297,1.42964763,638.21,637.31,0.28810732]
[1746795732498,1.42964763,638.2,637.31,0.28810732]
[1746795732701,1.42964763,638.19,637.31,0.28810732]
[1746795732901,1.42964763,638.18,637.31,0.28810732]
[1746795733096,1.42964763,638.17,637.31,0.28810732]
[1746795733301,1.42964763,638.16,637.31,0.28810732]
[1746795733498,1.42964763,638.15,637.31,0.28810732]
[1746795733699,1.42964763,638.14,637.31,0.28810732]
[1746795733998,1.42964763,638.13,637.31,0.28810732]
[1746795734198,1.42964763,638.12,637.31,0.28810732]
[1746795734403,1.42964763,638.11,637.31,0.28810732]
[1746795734604,1.42964763,638.1,637.31,0.28810732]
[1746795734805,1.42964763,638.09,637.31,0.28810732]
[1746795735006,1.42964763,638.08,637.31,0.28810732]
[1746795735201,1.42964763,638.07,637.31,0.28810732]
[1746795735401,1.42964763,638.06,637.31,0.28810732]
[1746795735603,1.42964763,638.05,637.31,0.28810732]
[1746795735805,1.42964763,638.04,637.31,0.28810732]
[1746795736000,1.42964763,638.03,637.31,0.28810732]
[1746795736204,1.42964763,638.02,637.31,0.28810732]
[1746795736504,0.27282135,638.28,637.3,0.31382394]
[1746795736505,1.42964763,638.01,637.3,0.31382394]
[1746795736706,1.42964763,638.0,637.3,0.31382394]
[1746795736899,1.42964763,637.99,637.3,0.31382394]
[1746795737098,1.42964763,637.98,637.3,0.31382394]
[1746795737400,1.42964763,637.97,637.31,0.28806322]
[1746795737605,1.42964763,637.96,637.31,0.28806322]
[1746795737807,1.42964763,637.95,637.32,0.31381409]
[1746795738015,1.42964763,637.94,637.32,0.31381409]
[1746795738310,1.42964763,637.93,637.33,0.28806059]
[1746795738510,1.42964763,637.92,637.34,0.31380424]
[1746795738710,1.42964763,637.91,637.34,0.31380424]
[1746795739010,1.42964763,637.9,637.34,0.31380424]
[1746795739211,1.42964763,637.89,637.35,0.2880523]
[1746795739406,1.42964763,637.88,637.35,0.2880523]
[1746795739610,1.42964763,637.87,637.36,0.3137944]
[1746795739808,1.42964763,637.86,637.36,0.3137944]
[1746795740004,0.31318509,638.6,637.36,0.3137944]
[1746795740005,1.42964763,637.85,637.36,0.3137944]
[1746795740206,1.42964763,637.84,637.37,0.28804474]
[1746795740510,1.42964763,637.83,637.38,0.31378455]
[1746795740707,1.42964763,637.82,637.39,0.28804474]
[1746795740910,1.42964763,637.81,637.4,0.3137747]
[1746795741106,1.42964763,637.8,637.4,0.3137747]
[1746795741304,1.42964763,637.79,637.4,0.3137747]
[1746795741509,1.42964763,637.78,637.4,0.3137747]
[1746795741707,1.42964763,637.77,637.41,0.28804474]
[1746795741909,0.27281172,638.44,637.42,0.31376486]
[1746795742107,0.27281172,638.44,637.43,0.28804474]
[1746795742108,1.45209448,638.43,637.43,0.28804474]
[1746795742310,1.45209448,638.42,637.44,0.31375502]
[1746795742510,0.27281172,638.44,637.45,0.28804474]
[1746795742511,1.45209448,638.41,637.45,0.28804474]
[1746795742710,1.45209448,638.4,637.46,0.31374517]
[1746795742909,1.45209448,638.39,637.46,0.60179059]
[1746795743212,1.45209448,638.38,637.46,0.60179059]
[1746795743412,1.45209448,638.37,637.46,0.60179059]
[1746795743610,1.45209448,638.36,637.47,0.28804542]
[1746795743814,1.45209448,638.35,637.47,0.60178567]
[1746795744010,1.45209448,638.34,637.47,0.60178567]
[1746795744213,1.45209448,638.33,637.47,0.60178567]
[1746795744413,1.45209448,638.32,637.48,0.28804542]
[1746795744609,1.45209448,638.31,637.48,0.28804542]
[1746795744913,1.45209448,638.3,637.48,0.28804542]
[1746795745113,1.45209448,638.29,637.48,0.28804542]
[1746795745313,1.45209448,638.28,637.48,0.28804542]
[1746795745511,1.45209448,638.27,637.48,0.28804542]
[1746795745710,1.45209448,638.26,637.48,0.28804542]
[1746795745918,1.45209448,638.25,637.48,0.28804542]
[1746795746118,1.45209448,638.24,637.48,0.28804542]
[1746795746312,1.45209448,638.23,637.48,0.28804542]
[1746795746515,1.45209448,638.22,637.48,0.28804542]
[1746795746719,1.45209448,638.21,637.48,0.28804542]
[1746795747020,1.45209448,638.2,637.48,0.28804542]
[1746795747217,1.45209448,638.19,637.49,0.2880407]
[1746795747411,1.45209448,638.19,637.47,0.31374025]
[1746795747412,1.45209448,638.18,637.48,0.2880407]
[1746795747614,1.45209448,638.17,637.48,0.2880407]
[1746795747813,1.45209448,638.16,637.48,0.2880407]
[1746795748016,1.45209448,638.15,637.48,0.2880407]
[1746795748215,1.45209448,638.14,637.48,0.2880407]
[1746795748416,1.45209448,638.13,637.48,0.2880407]
[1746795748718,1.45209448,638.12,637.48,0.2880407]
[1746795748919,1.45209448,638.11,637.48,0.2880407]
[1746795749118,0.31318509,638.6,637.47,0.31374025]
[1746795749119,1.45209448,638.1,637.47,0.31374025]
[1746795749320,1.45209448,638.09,637.49,0.28803107]
[1746795749521,0.27277216,638.44,637.48,0.28803107]
[1746795749722,1.43990305,638.43,637.5,0.28803107]
[1746795750022,1.43990305,638.42,637.49,0.28803107]
[1746795750219,1.43990305,638.41,637.49,0.28803107]
[1746795750414,1.43990305,638.4,637.48,0.28803107]
[1746795750616,1.43990305,638.39,637.48,0.6017664]
[1746795750816,1.43990305,638.38,637.48,0.6017664]
[1746795751121,1.43990305,638.37,637.49,0.60176148]
[1746795751317,1.43990305,638.36,637.5,0.31372549]
[1746795751518,1.43990305,638.35,637.5,0.31372549]
[1746795751716,1.43990305,638.34,637.51,0.28803107]
[1746795751921,1.43990305,638.33,637.52,0.31371564]
[1746795752222,1.43990305,638.32,637.53,0.28803107]
[1746795752422,1.43990305,638.31,637.54,0.3137058]
[1746795752623,1.43990305,638.3,637.54,0.3137058]
[1746795752821,1.43990305,638.29,637.54,0.3137058]
[1746795753021,1.43990305,638.28,637.54,0.3137058]
[1746795753217,1.43990305,638.27,637.54,0.3137058]
[1746795753520,1.43990305,638.26,637.54,0.3137058]
[1746795753720,1.43990305,638.25,637.54,0.3137058]
[1746795753920,1.43990305,638.24,637.54,0.3137058]
[1746795754121,1.43990305,638.23,637.54,0.3137058]
[1746795754325,1.43990305,638.22,637.54,0.3137058]
[1746795754518,1.43990305,638.21,637.54,0.3137058]
[1746795754724,1.43990305,638.2,637.54,0.3137058]
[1746795754926,1.43990305,638.19,637.54,0.3137058]
[1746795755124,1.43990305,638.18,637.55,0.288024]
[1746795755326,1.43990305,638.17,637.56,0.31369596]
[1746795755623,1.43990305,638.16,637.56,0.31369596]
[1746795755826,1.43990305,638.15,637.56,0.31369596]
[1746795756031,1.43990305,638.14,637.56,0.31369596]
[1746795756220,1.43990305,638.13,637.56,0.31369596]
[1746795756424,1.43990305,638.12,637.56,0.31369596]
[1746795756627,1.43990305,638.11,637.56,0.31369596]
[1746795756926,1.43990305,638.1,637.56,0.31369596]
[1746795757225,1.43990305,638.09,637.56,0.31369596]
[1746795757423,1.43990305,638.08,637.56,0.31369596]
[1746795757628,1.43990305,638.07,637.56,0.31369596]
[1746795757927,1.43990305,638.06,637.56,0.31369596]
[1746795758127,1.43990305,638.05,637.56,0.31369596]
[1746795758323,1.43990305,638.04,637.56,0.31369596]
[1746795758523,1.43990305,638.03,637.56,0.31369596]
[1746795758727,0.31318509,638.6,637.56,0.31369596]
[1746795758728,1.43990305,638.02,637.56,0.31369596]
[1746795758925,1.43990305,638.01,637.56,0.31369596]
[1746795759229,1.43990305,638.0,637.56,0.31369596]
[1746795759425,1.43990305,637.99,637.56,0.31369596]
[1746795759628,0.27275399,638.54,637.56,0.31369596]
[1746795759629,1.43990305,637.98,637.56,0.31369596]
[1746795759831,1.43990305,637.97,637.56,0.31369596]
[1746795760026,1.43990305,637.96,637.56,0.31369596]
[1746795760226,1.43990305,637.95,637.56,0.31369596]
[1746795760434,1.43990305,637.94,637.56,0.31369596]
[1746795760632,1.43990305,637.93,637.56,0.31369596]
[1746795760932,1.43990305,637.92,637.56,0.31369596]
[1746795761126,1.43990305,637.91,637.56,0.31369596]
[1746795761327,1.43990305,637.9,637.56,0.31369596]
[1746795761631,0.27276254,638.54,637.56,0.31369596]
[1746795761828,1.43116067,638.53,637.56,0.31369596]
[1746795762028,1.43116067,638.52,637.56,0.31369596]
[1746795762231,1.43116067,638.51,637.56,0.31369596]
[1746795762432,1.43116067,638.5,637.56,0.31369596]
[1746795762632,1.43116067,638.49,637.56,0.31369596]
[1746795762827,1.43116067,638.48,637.56,0.31369596]
[1746795763028,1.43116067,638.47,637.56,0.31369596]
[1746795763230,1.43116067,638.46,637.56,0.31369596]
[1746795763432,1.43116067,638.45,637.56,0.31369596]
[1746795763733,1.43116067,638.44,637.56,0.31369596]
[1746795763936,1.43116067,638.43,637.56,0.31369596]
[1746795764135,1.43116067,638.42,637.56,0.31369596]
[1746795764433,1.43116067,638.41,637.56,0.31369596]
[1746795764629,1.43116067,638.4,637.56,0.31369596]
[1746795764836,1.43116067,638.39,637.56,0.31369596]
[1746795765032,1.43116067,638.38,637.56,0.31369596]
[1746795765230,1.43116067,638.37,637.56,0.31369596]
[1746795765431,1.43116067,638.36,637.56,0.31369596]
[1746795765632,1.43116067,638.35,637.56,0.31369596]
[1746795765831,1.43116067,638.34,637.56,0.31369596]
[1746795766035,1.43116067,638.33,637.56,0.31369596]
[1746795766236,1.43116067,638.32,637.56,0.31369596]
[1746795766434,1.43116067,638.31,637.56,0.31369596]
[1746795766631,1.43116067,638.3,637.56,0.31369596]
[1746795766838,0.31318509,638.6,637.56,0.31369596]
[1746795766839,1.43116067,638.29,637.56,0.31369596]
[1746795767033,1.43567277,638.28,637.56,0.31369596]
[1746795767337,1.43567455,638.27,637.56,0.31369596]
[1746795767537,1.43567455,638.26,637.56,0.31369596]
[1746795767734,1.43567455,638.25,637.56,0.31369596]
[1746795767938,1.43567455,638.24,637.56,0.31369596]
[1746795768134,1.43567455,638.23,637.56,0.31369596]
[1746795768340,1.43567455,638.22,637.56,0.31369596]
[1746795768537,1.43567455,638.21,637.56,0.31369596]
[1746795768739,1.43567455,638.2,637.56,0.31369596]
[1746795768940,1.43831629,638.19,637.56,0.31369596]
[1746795769240,1.43831629,638.18,637.56,0.31369596]
[1746795769433,1.43831629,638.17,637.56,0.31369596]
[1746795769638,1.43831629,638.16,637.56,0.31369596]
[1746795769939,1.44351354,638.15,637.56,0.31369596]
[1746795770141,1.44351354,638.14,637.56,0.31369596]
[1746795770336,1.44351354,638.13,637.56,0.31369596]
[1746795770536,1.44351354,638.12,637.56,0.31369596]
[1746795770737,1.44351354,638.11,637.56,0.31369596]
[1746795770937,1.44351354,638.1,637.56,0.31369596]
[1746795771242,1.44351354,638.09,637.56,0.31369596]
[1746795771444,1.44351354,638.08,637.56,0.31369596]
[1746795771636,1.44351354,638.07,637.56,0.31369596]
[1746795771837,1.44351354,638.06,637.56,0.31369596]
[1746795772042,1.44351354,638.05,637.56,0.31369596]
[1746795772338,1.44351354,638.04,637.56,0.31369596]
[1746795772540,1.44351354,638.03,637.56,0.31369596]
[1746795772741,1.44351354,638.02,637.56,0.31369596]
[1746795772942,1.44351354,638.01,637.56,0.31369596]
[1746795773238,1.44351354,638.0,637.56,0.31369596]
[1746795773437,0.31318509,638.6,637.56,0.31369596]
[1746795773643,1.43984486,638.59,637.56,0.31369596]
[1746795773843,1.43984486,638.58,637.56,0.31369596]
[1746795774041,1.43984486,638.57,637.56,0.31369596]
[1746795774237,1.43984486,638.56,637.56,0.31369596]
[1746795774440,1.43984486,638.55,637.56,0.31369596]
[1746795774644,1.43984486,638.54,637.56,0.31369596]
[1746795774844,1.43984486,638.53,637.56,0.31369596]
[1746795775045,1.43984486,638.52,637.56,0.31369596]
[1746795775345,1.43984486,638.51,637.56,0.31369596]
[1746795775539,1.43984486,638.5,637.56,0.31369596]
[1746795775742,1.43984486,638.49,637.56,0.31369596]
[1746795776039,1.43984486,638.48,637.56,0.31369596]
[1746795776239,1.43984486,638.47,637.56,0.31369596]
[1746795776541,1.43984486,638.46,637.56,0.31369596]
[1746795776742,1.43984486,638.45,637.56,0.31369596]
[1746795777042,1.43984486,638.44,637.56,0.31369596]
[1746795777245,1.43984486,638.43,637.56,0.31369596]
[1746795777441,1.44458676,638.42,637.56,0.31369596]
[1746795777640,1.44458676,638.41,637.56,0.31369596]
[1746795777844,1.44458676,638.4,637.56,0.31369596]
[1746795778043,1.44458676,638.39,637.56,0.31369596]
[1746795778244,1.44458676,638.38,637.56,0.31369596]
[1746795778441,1.44458676,638.37,637.56,0.31369596]
[1746795778641,1.44458676,638.36,637.56,0.31369596]
[1746795778842,1.44458676,638.35,637.56,0.31369596]
[1746795779041,1.44458676,638.34,637.56,0.31369596]
[1746795779240,1.44458676,638.33,637.56,0.31369596]
[1746795779441,1.44458676,638.32,637.56,0.31369596]
[1746795779641,1.44458676,638.31,637.56,0.31369596]
[1746795779845,1.44458676,638.3,637.56,0.31369596]
[1746795780047,1.44458676,638.29,637.56,0.31369596]
[1746795780247,1.44458676,638.28,637.56,0.31369596]
[1746795780545,1.44458676,638.27,637.56,0.31369596]
[1746795780745,1.44458676,638.26,637.56,0.31369596]
[1746795780947,1.44458676,638.25,637.56,0.31369596]
[1746795781149,1.45194829,638.24,637.56,0.31369596]
[1746795781342,1.45194829,638.23,637.56,0.31369596]
[1746795781544,1.45194829,638.22,637.56,0.31369596]
[1746795781743,1.45194829,638.21,637.56,0.31369596]
[1746795781945,1.45194829,638.2,637.56,0.31369596]
[1746795782147,1.45194829,638.19,637.56,0.31369596]
[1746795782348,1.45194829,638.18,637.56,0.31369596]
[1746795782543,1.45194829,638.17,637.56,0.31369596]
[1746795782746,1.45194829,638.16,637.56,0.31369596]
[1746795782943,1.45194829,638.15,637.56,0.31369596]
[1746795783148,1.45194829,638.14,637.56,0.31369596]
[1746795783348,1.45194829,638.13,637.56,0.31369596]
[1746795783546,1.45194829,638.12,637.56,0.31369596]
[1746795783746,1.45194829,638.11,637.56,0.31369596]
[1746795783946,1.45194829,638.1,637.56,0.31369596]
[1746795784152,1.45194829,638.09,637.56,0.31369596]
[1746795784352,1.45194829,638.08,637.56,0.31369596]
[1746795784553,1.45194829,638.07,637.56,0.31369596]
[1746795784753,1.45194829,638.06,637.56,0.31369596]
[1746795785053,1.45194829,638.05,637.56,0.31369596]
[1746795785252,1.45194829,638.04,637.56,0.31369596]
[1746795785452,1.45194829,638.03,637.56,0.31369596]
[1746795785651,1.45194829,638.02,637.56,0.31369596]
[1746795785856,1.45194829,638.01,637.56,0.31369596]
[1746795786154,1.45194829,638.0,637.56,0.31369596]
[1746795786355,1.45194829,637.99,637.56,0.31369596]
[1746795786554,1.45194829,637.98,637.56,0.31369596]
[1746795786853,1.45194829,637.97,637.56,0.31369596]
[1746795787052,1.45194829,637.96,637.56,0.31369596]
[1746795787253,0.31318509,638.6,637.56,0.31369596]
[1746795787553,1.43195406,638.59,637.56,0.31369596]
[1746795787753,1.43195406,638.58,637.56,0.31369596]
[1746795787955,1.43195406,638.57,637.56,0.31369596]
[1746795788156,0.31318509,638.6,637.56,0.31369596]
[1746795788356,1.44144748,638.59,637.56,0.31369596]
[1746795788655,1.44144748,638.58,637.56,0.31369596]
[1746795788851,1.44144748,638.57,637.56,0.31369596]
[1746795789056,1.44144748,638.56,637.56,0.31369596]
[1746795789262,1.44144748,638.55,637.56,0.31369596]
[1746795789455,1.44144748,638.54,637.56,0.31369596]
[1746795789656,1.44144748,638.53,637.56,0.31369596]
[1746795789855,1.44144748,638.52,637.56,0.31369596]
[1746795790050,1.44144748,638.51,637.56,0.31369596]
[1746795790251,1.44144748,638.5,637.56,0.31369596]
[1746795790456,1.44144748,638.49,637.56,0.31369596]
[1746795790657,1.44144748,638.48,637.56,0.31369596]
[1746795790854,0.31318509,638.6,637.56,0.31369596]
[1746795790855,1.44144748,638.47,637.56,0.31369596]
[1746795791055,0.31318509,638.6,637.56,0.31369596]
[1746795791259,1.43780807,638.59,637.56,0.31369596]
[1746795791454,1.43780807,638.58,637.56,0.31369596]
[1746795791656,0.31318509,638.6,637.56,0.31369596]
[1746795791951,1.43781164,638.59,637.56,0.31369596]
[1746795792152,0.31318509,638.6,637.56,0.31369596]
[1746795792353,1.44004259,638.58,637.56,0.31369596]
[1746795792552,1.44020165,638.57,637.56,0.31369596]
[1746795792760,1.44020165,638.56,637.56,0.31369596]
[1746795792955,1.44020127,638.55,637.56,0.31369596]
[1746795793158,1.44020127,638.54,637.56,0.31369596]
[1746795793458,1.44020127,638.53,637.56,0.31369596]
[1746795793658,1.44020127,638.52,637.56,0.31369596]
[1746795793860,1.44020127,638.51,637.56,0.31369596]
[1746795794160,1.44020127,638.5,637.56,0.31369596]
[1746795794363,1.44020127,638.49,637.56,0.31369596]
[1746795794663,1.44020127,638.48,637.56,0.31369596]
[1746795794861,1.44020127,638.47,637.56,0.31369596]
[1746795795061,1.44020127,638.46,637.56,0.31369596]
[1746795795262,1.4459921,638.45,637.56,0.31369596]
[1746795795583,1.4459921,638.44,637.56,0.31369596]
[1746795795862,1.4459921,638.43,637.56,0.31369596]
[1746795796060,1.4459921,638.42,637.56,0.31369596]
[1746795796258,1.4459921,638.41,637.56,0.31369596]
[1746795796464,1.4459921,638.4,637.56,0.31369596]
[1746795796666,1.4459921,638.39,637.56,0.31369596]
[1746795796963,1.44072312,638.38,637.56,0.31369596]
[1746795797164,1.44072312,638.37,637.56,0.31369596]
[1746795797358,1.44072312,638.36,637.56,0.31369596]
[1746795797562,1.44072312,638.35,637.56,0.31369596]
[1746795797764,1.44072312,638.34,637.56,0.31369596]
[1746795797957,1.44072312,638.33,637.56,0.31369596]
[1746795798162,1.44072312,638.32,637.56,0.31369596]
[1746795798359,1.44072312,638.31,637.56,0.31369596]
[1746795798564,1.44094468,638.3,637.56,0.31369596]
[1746795798764,1.44094468,638.29,637.56,0.31369596]
[1746795798966,1.44094468,638.28,637.56,0.31369596]
[1746795799158,1.44094468,638.27,637.56,0.31369596]
[1746795799360,1.44094468,638.26,637.56,0.31369596]
[1746795799562,1.44094468,638.25,637.56,0.31369596]
[1746795799863,1.44094468,638.24,637.56,0.31369596]
[1746795800164,0.31318509,638.6,637.56,0.31369596]
[1746795800363,1.42274468,638.59,637.56,0.31369596]
[1746795800559,1.42274468,638.58,637.56,0.31369596]
[1746795800758,1.42274468,638.57,637.56,0.31369596]
[1746795800963,1.42274468,638.56,637.56,0.31369596]
[1746795801159,1.42274468,638.55,637.56,0.31369596]
[1746795801459,1.42274468,638.54,637.56,0.31369596]
[1746795801662,1.42274468,638.53,637.56,0.31369596]
[1746795801862,1.42274468,638.52,637.56,0.31369596]
[1746795802062,1.42274468,638.51,637.56,0.31369596]
[1746795802264,1.42274468,638.5,637.56,0.31369596]
[1746795802461,1.42274468,638.49,637.56,0.31369596]
[1746795802667,1.42274468,638.48,637.56,0.31369596]
[1746795802965,1.42274468,638.47,637.56,0.31369596]
[1746795803169,0.31318509,638.6,637.56,0.31369596]
[1746795805968,0.27268133,638.59,637.56,0.31369596]
[1746795810875,0.27268133,638.59,637.57,0.28796532]
[1746795811076,0.27268133,638.59,637.59,0.3136812]
[1746795811471,0.27268133,638.59,637.6,0.568]
[1746795811675,0.27268133,638.59,637.62,0.31366644]
[1746795813179,0.27268133,638.59,637.63,0.94139839]
[1746795813379,0.27268133,638.59,637.64,0.94139839]
[1746795813572,0.27268133,638.59,637.65,0.94139839]
[1746795813778,0.27268133,638.59,637.67,0.31364185]
[1746795813972,0.27268133,638.59,637.68,0.94139839]
[1746795814173,0.27268133,638.59,637.69,0.94139839]
[1746795814381,0.27268133,638.59,637.7,0.94139839]
[1746795814578,0.27268133,638.59,637.71,1.25502056]
[1746795814880,0.31318509,638.6,637.72,1.25501565]
[1746795815080,0.27266317,638.59,637.73,0.94139839]
[1746795815378,0.27266317,638.59,637.74,0.94139839]
[1746795815577,0.27266317,638.59,637.75,0.94139839]
[1746795815771,0.27266317,638.59,637.76,0.94139839]
[1746795815976,0.27266317,638.59,637.77,0.94139839]
[1746795816180,0.27266317,638.59,637.78,0.94139839]
[1746795816479,0.27266317,638.59,637.79,1.25498123]
[1746795816675,0.27266317,638.59,637.8,0.94139839]
[1746795816874,0.27266317,638.59,637.81,0.94139839]
[1746795817173,0.27266317,638.59,637.82,0.94139839]
[1746795817478,0.27266317,638.59,637.83,0.94139839]
[1746795817677,0.31318509,638.6,637.79,0.31358284]
[1746795817678,0.31318509,638.6,637.84,0.94139839]
[1746795817878,0.27265035,638.59,637.85,0.94139839]
[1746795818078,0.27265035,638.59,637.86,0.94139839]
[1746795818282,0.27265035,638.59,637.87,0.94139839]
[1746795818482,0.27265035,638.59,637.88,0.94139839]
[1746795818679,0.27265035,638.59,637.89,0.94139839]
[1746795818884,0.27265035,638.59,637.9,0.94139839]
[1746795819084,0.27265035,638.59,637.91,1.25242118]
[1746795819385,0.27265035,638.59,637.92,0.93889733]
[1746795819578,0.27265035,638.59,637.93,0.93889733]
[1746795819779,0.27265035,638.59,637.94,0.93889733]
[1746795819984,0.27265035,638.59,637.95,0.93889733]
[1746795820185,0.27265035,638.59,637.96,0.93889733]
[1746795820385,0.27265035,638.59,637.97,0.93889733]
[1746795820589,0.27265035,638.59,637.98,0.93889733]
[1746795820781,0.31318509,638.6,637.99,0.93889733]
[1746795820984,0.31318509,638.6,638.0,0.93889733]
[1746795821181,0.27263433,638.59,638.01,0.93889733]
[1746795821485,0.27263433,638.59,638.02,0.94549608]
[1746795821786,0.27263433,638.59,638.03,0.94549608]
[1746795822087,0.27263433,638.59,638.04,0.94549608]
[1746795822282,0.27263433,638.59,638.05,0.94549608]
[1746795822483,0.27263433,638.59,638.06,0.94549608]
[1746795822685,0.27263433,638.59,638.07,0.94549608]
[1746795822886,0.27263433,638.59,638.08,0.94549608]
[1746795823086,0.27263433,638.59,638.09,0.94549608]
[1746795823386,0.27263433,638.59,638.1,0.94549608]
[1746795823589,0.27263433,638.59,638.11,0.94549608]
[1746795823787,0.31318509,638.6,638.12,0.94549608]
[1746795823988,0.31318509,638.6,638.13,0.94549608]
[1746795824286,0.31318509,638.6,638.14,0.94549608]
[1746795824486,0.31318509,638.6,638.15,0.94549608]
[1746795824686,0.31318509,638.6,638.16,0.94549608]
[1746795824888,0.31318509,638.6,638.17,0.94549608]
[1746795825087,0.31318509,638.6,638.18,0.94178397]
[1746795825288,0.31318509,638.6,638.19,0.94178397]
[1746795825588,0.31318509,638.6,638.2,0.94178397]
[1746795825792,0.31318509,638.6,638.21,0.94178397]
[1746795826089,0.31318509,638.6,637.91,0.31352385]
[1746795826090,0.31318509,638.6,638.22,0.94178397]
[1746795826387,0.31318509,638.6,638.23,0.94178397]
[1746795826590,0.31318509,638.6,638.24,0.94178397]
[1746795826782,0.31318509,638.6,638.25,0.94178397]
[1746795826983,0.31318509,638.6,638.26,0.94178397]
[1746795827186,0.31318509,638.6,638.27,0.94178397]
[1746795827388,0.31318509,638.6,638.28,0.94178397]
[1746795827593,0.31318509,638.6,638.29,0.94178397]
[1746795827792,0.31318509,638.6,638.3,0.94178397]
[1746795827994,0.31318509,638.6,638.31,0.94208803]
[1746795828194,0.31318509,638.6,638.32,0.94208803]
[1746795828393,0.31318509,638.6,637.91,0.31352385]
[1746795828595,0.31318509,638.6,637.92,0.94229924]
[1746795828793,0.31318509,638.6,637.93,0.94229924]
[1746795829094,0.31318509,638.6,637.94,0.94229924]
[1746795829293,0.31318509,638.6,637.95,0.94229924]
[1746795829593,0.31318509,638.6,637.96,0.94229924]
[1746795829795,0.31318509,638.6,637.97,0.94229924]
[1746795830095,0.2726354,638.59,637.98,0.94229924]
[1746795830293,0.2726354,638.59,637.99,0.94229924]
[1746795830594,0.2726354,638.59,638.0,0.94229924]
[1746795830788,0.2726354,638.59,638.01,0.94229924]
[1746795830992,0.2726354,638.59,638.02,0.94229924]
[1746795831190,0.2726354,638.59,638.03,0.94229924]
[1746795831393,0.2726354,638.59,638.04,0.94015688]
[1746795831594,0.2726354,638.59,638.05,0.94015688]
[1746795831790,0.2726354,638.59,638.06,0.94015688]
[1746795831996,0.2726354,638.59,638.07,0.94015688]
[1746795832198,0.2726354,638.59,638.08,0.94015688]
[1746795832396,0.2726354,638.59,638.09,0.94023022]
[1746795832589,0.2726354,638.59,638.1,0.94023022]
[1746795832792,0.2726354,638.59,638.11,0.94023022]
[1746795832994,0.2726354,638.59,638.12,0.94023022]
[1746795833196,0.2726354,638.59,638.13,0.94023022]
[1746795833395,0.2726354,638.59,638.14,0.94023022]
[1746795833592,0.2726354,638.59,638.15,0.94023022]
[1746795833796,0.2726354,638.59,638.16,0.94023022]
[1746795833998,0.2726354,638.59,638.17,0.94023022]
[1746795834196,0.2726354,638.59,638.18,0.94023022]
[1746795834393,0.2726354,638.59,638.19,0.94023022]
[1746795834593,0.2726354,638.59,638.2,0.94023022]
[1746795834795,0.2726354,638.59,638.21,0.94023022]
[1746795834996,0.2726354,638.59,638.22,0.94023022]
[1746795835198,0.2726354,638.59,638.23,0.94023022]
[1746795835397,0.2726354,638.59,637.96,0.543]
[1746795835398,0.2726354,638.59,638.24,0.94023022]
[1746795835599,0.2726354,638.59,637.96,0.543]
[1746795835600,0.2726354,638.59,638.25,0.94023022]
[1746795835792,0.31318509,638.6,638.26,0.94023022]
[1746795835997,0.31318509,638.6,638.27,0.94023022]
[1746795836197,0.27260977,638.58,638.28,0.94023022]
[1746795836398,0.27260977,638.58,638.29,0.94023022]
[1746795836701,0.27260977,638.58,638.3,0.94023022]
[1746795836998,0.27260977,638.58,638.31,0.94023022]
[1746795837198,0.27260977,638.58,638.32,0.94023022]
[1746795837497,0.27260977,638.58,637.96,0.543]
[1746795837696,0.27260977,638.58,637.97,0.94864101]
[1746795837898,0.27260977,638.58,637.98,0.94864101]
[1746795838197,0.27260977,638.58,637.99,0.94864101]
[1746795838498,0.27260977,638.58,638.0,0.94864101]
[1746795838696,0.31318509,638.6,638.01,0.94864101]
[1746795839001,0.27263647,638.57,638.02,0.94864101]
[1746795839303,0.27263647,638.57,638.03,0.94856969]
[1746795839496,0.27263647,638.57,638.04,0.94856969]
[1746795839694,0.27263647,638.57,638.05,0.94856969]
[1746795839900,0.27263647,638.57,638.06,0.94856969]
[1746795840099,0.27263647,638.57,638.07,0.94856969]
[1746795840295,0.27263647,638.57,638.08,0.94856969]
[1746795840601,0.27263647,638.57,638.09,0.94856969]
[1746795840794,0.27263647,638.57,638.1,0.94856969]
[1746795840998,0.27263647,638.57,638.11,0.9432965]
[1746795841196,0.27263647,638.57,638.12,0.9432965]
[1746795841399,0.27263647,638.57,638.13,0.9432965]